[Event "Late-Titled-Tuesday-Blitz-February-27-2024"]
[Site "Chess.com"]
[Date "2024.02.27"]
[Round "8"]
[White "MrKGG1"]
[Black "rikchessmx"]
[Result "0-1"]
[WhiteElo "2573"]
[BlackElo "2277"]
[TimeControl "180+1"]
[EndTime "15:27:32 PST"]
[Termination "rikchessmx won on time"]

1. Nf3 {[%clk 0:02:56.9]} 1... Nf6 {[%clk 0:02:59.4]} 2. d4 {[%clk 0:02:56.3]}
2... e6 {[%clk 0:03:00]} 3. Bf4 {[%clk 0:02:55.9]} 3... Bd6 {[%clk 0:02:58.2]}
4. Bg5 {[%clk 0:02:43.5]} 4... h6 {[%clk 0:02:54.6]} 5. Bh4 {[%clk 0:02:41.4]}
5... g5 {[%clk 0:02:53.7]} 6. Bg3 {[%clk 0:02:39.3]} 6... Ne4 {[%clk 0:02:53.5]}
7. Be5 {[%clk 0:02:31.7]} 7... f6 {[%clk 0:02:52.2]} 8. Bxd6 {[%clk 0:02:29.1]}
8... cxd6 {[%clk 0:02:51.3]} 9. Nbd2 {[%clk 0:02:28.1]} 9... d5 {[%clk 0:02:51]}
10. h4 {[%clk 0:02:23.3]} 10... g4 {[%clk 0:02:49.8]} 11. Nxe4 {[%clk 0:02:23]}
11... gxf3 {[%clk 0:02:45.3]} 12. Ng3 {[%clk 0:02:03.8]} 12... fxg2 {[%clk
0:02:44.4]} 13. Bxg2 {[%clk 0:02:03.7]} 13... Nc6 {[%clk 0:02:43.8]} 14. c3
{[%clk 0:02:02.6]} 14... Qe7 {[%clk 0:02:43.3]} 15. Qd3 {[%clk 0:01:54.8]} 15...
b6 {[%clk 0:02:41.4]} 16. e4 {[%clk 0:01:47.9]} 16... dxe4 {[%clk 0:02:39.5]}
17. Bxe4 {[%clk 0:01:48.8]} 17... d5 {[%clk 0:02:39.8]} 18. Bg6+ {[%clk
0:01:47.8]} 18... Kd8 {[%clk 0:02:40]} 19. O-O-O {[%clk 0:01:38.2]} 19... a5
{[%clk 0:02:39]} 20. Rhe1 {[%clk 0:01:28.5]} 20... Qd6 {[%clk 0:02:38.3]} 21.
Qe3 {[%clk 0:01:21]} 21... a4 {[%clk 0:02:31.9]} 22. Nh5 {[%clk 0:01:15.8]}
22... f5 {[%clk 0:02:26.3]} 23. Nf4 {[%clk 0:00:54.3]} 23... Rg8 {[%clk
0:02:13.2]} 24. Bf7 {[%clk 0:00:51.5]} 24... Rg4 {[%clk 0:02:10.7]} 25. Nxe6+
{[%clk 0:00:46]} 25... Bxe6 {[%clk 0:02:08.1]} 26. Qxe6 {[%clk 0:00:46]} 26...
Qxe6 {[%clk 0:02:07.2]} 27. Bxe6 {[%clk 0:00:46.9]} 27... Ne7 {[%clk 0:02:02.5]}
28. Rg1 {[%clk 0:00:37.8]} 28... Rxh4 {[%clk 0:02:00.3]} 29. Bxd5 {[%clk
0:00:32.3]} 29... Ra7 {[%clk 0:01:52.3]} 30. Be6 {[%clk 0:00:30.8]} 30... Kc7
{[%clk 0:01:50.4]} 31. Rge1 {[%clk 0:00:23.5]} 31... Kd6 {[%clk 0:01:50.3]} 32.
Bc4 {[%clk 0:00:22.9]} 32... Nd5 {[%clk 0:01:38.1]} 33. Re5 {[%clk 0:00:20.7]}
33... Nf4 {[%clk 0:01:38]} 34. Rxf5 {[%clk 0:00:20]} 34... a3 {[%clk 0:01:38.3]}
35. b4 {[%clk 0:00:17.7]} 35... Rc7 {[%clk 0:01:36.9]} 36. Rf6+ {[%clk
0:00:16.8]} 36... Kd7 {[%clk 0:01:31.8]} 37. Rf7+ {[%clk 0:00:12.3]} 37... Kd6
{[%clk 0:01:31.7]} 38. Rxc7 {[%clk 0:00:11.3]} 38... Kxc7 {[%clk 0:01:32]} 39.
Kc2 {[%clk 0:00:08.6]} 39... Kc6 {[%clk 0:01:32.2]} 40. Kb3 {[%clk 0:00:08.5]}
40... b5 {[%clk 0:01:32.4]} 41. d5+ {[%clk 0:00:08.7]} 41... Kb6 {[%clk
0:01:32.7]} 42. Bf1 {[%clk 0:00:07.4]} 42... Rh5 {[%clk 0:01:19]} 43. d6 {[%clk
0:00:06.8]} 43... Ne6 {[%clk 0:01:19.1]} 44. d7 {[%clk 0:00:06.8]} 44... Nd8
{[%clk 0:01:19.2]} 45. Kxa3 {[%clk 0:00:06.1]} 45... Rf5 {[%clk 0:01:18.6]} 46.
Rd2 {[%clk 0:00:05.5]} 46... Rf3 {[%clk 0:01:18]} 47. Kb2 {[%clk 0:00:05.4]}
47... Kc7 {[%clk 0:01:17.8]} 48. Bg2 {[%clk 0:00:05.6]} 48... Rf6 {[%clk
0:01:15.7]} 49. Bf1 {[%clk 0:00:06]} 49... Rf5 {[%clk 0:01:15.6]} 50. Bxb5
{[%clk 0:00:05.6]} 50... Rxb5 {[%clk 0:01:14.8]} 51. Kb3 {[%clk 0:00:05.8]}
51... Rf5 {[%clk 0:01:13.5]} 52. c4 {[%clk 0:00:05.9]} 52... h5 {[%clk 0:01:13]}
53. c5 {[%clk 0:00:05.9]} 53... Rf3+ {[%clk 0:01:13]} 54. Kc4 {[%clk 0:00:06.3]}
54... Rf4+ {[%clk 0:01:13.5]} 55. Kb5 {[%clk 0:00:05.8]} 55... Nc6 {[%clk
0:01:12.3]} 56. Rd6 {[%clk 0:00:04.7]} 56... Rxb4+ {[%clk 0:01:11.2]} 57. Ka6
{[%clk 0:00:05.2]} 57... Rb8 {[%clk 0:01:10.5]} 58. a4 {[%clk 0:00:04.3]} 58...
Ra8+ {[%clk 0:01:06.5]} 59. Kb5 {[%clk 0:00:04.6]} 59... Rb8+ {[%clk 0:01:06.2]}
60. Kc4 {[%clk 0:00:04.6]} 60... Rd8 {[%clk 0:01:04.7]} 61. a5 {[%clk
0:00:02.9]} 61... Nxa5+ {[%clk 0:01:03.3]} 62. Kb5 {[%clk 0:00:02.8]} 62... Nb7
{[%clk 0:01:03.2]} 63. Rd5 {[%clk 0:00:01.5]} 63... Rh8 {[%clk 0:00:57.6]} 64.
c6 {[%clk 0:00:01.6]} 64... Nd8 {[%clk 0:00:57.9]} 0-1

[Event "Late-Titled-Tuesday-Blitz-February-27-2024"]
[Site "Chess.com"]
[Date "2024.02.27"]
[Round "8"]
[White "djano"]
[Black "chedimir"]
[Result "0-1"]
[WhiteElo "2569"]
[BlackElo "2485"]
[TimeControl "180+1"]
[EndTime "15:27:34 PST"]
[Termination "chedimir won on time"]

1. e4 {[%clk 0:03:00.9]} 1... c5 {[%clk 0:02:59.3]} 2. Nc3 {[%clk 0:03:00.5]}
2... e6 {[%clk 0:02:59.2]} 3. f4 {[%clk 0:02:57.8]} 3... Nf6 {[%clk 0:02:56.5]}
4. e5 {[%clk 0:02:54.9]} 4... Nd5 {[%clk 0:02:54.7]} 5. Nf3 {[%clk 0:02:53.3]}
5... d6 {[%clk 0:02:53.4]} 6. g3 {[%clk 0:02:45.7]} 6... Nc6 {[%clk 0:02:50.1]}
7. Bg2 {[%clk 0:02:45.8]} 7... dxe5 {[%clk 0:02:46.6]} 8. fxe5 {[%clk
0:02:46.2]} 8... Be7 {[%clk 0:02:38.3]} 9. O-O {[%clk 0:02:44.7]} 9... O-O
{[%clk 0:02:36.7]} 10. Ne4 {[%clk 0:02:42.9]} 10... Qc7 {[%clk 0:02:34.1]} 11.
d3 {[%clk 0:02:24.9]} 11... Nxe5 {[%clk 0:02:32.2]} 12. Nxe5 {[%clk 0:02:25.2]}
12... Qxe5 {[%clk 0:02:31.5]} 13. c4 {[%clk 0:02:25.7]} 13... Qd4+ {[%clk
0:02:27.5]} 14. Kh1 {[%clk 0:02:20.4]} 14... Nb4 {[%clk 0:02:23.9]} 15. Qh5
{[%clk 0:02:01.6]} 15... Nxd3 {[%clk 0:01:55.1]} 16. Bg5 {[%clk 0:02:00.7]}
16... f6 {[%clk 0:01:49.5]} 17. Bd2 {[%clk 0:01:50]} 17... Bd7 {[%clk
0:01:02.7]} 18. Bc3 {[%clk 0:01:36]} 18... Qe3 {[%clk 0:01:00.3]} 19. Bd2 {[%clk
0:01:30.4]} 19... Qd4 {[%clk 0:00:59]} 20. Bc3 {[%clk 0:01:30.4]} 20... Qxc4
{[%clk 0:00:58.2]} 21. b3 {[%clk 0:01:21.2]} 21... Qa6 {[%clk 0:00:57.1]} 22.
Rad1 {[%clk 0:01:14.2]} 22... Be8 {[%clk 0:00:45.4]} 23. Qg4 {[%clk 0:01:08.3]}
23... Bg6 {[%clk 0:00:41.1]} 24. Qe2 {[%clk 0:00:45.1]} 24... Rad8 {[%clk
0:00:37.7]} 25. h4 {[%clk 0:00:40]} 25... Ne5 {[%clk 0:00:28.4]} 26. Qb2 {[%clk
0:00:33.2]} 26... Bh5 {[%clk 0:00:22.3]} 27. Rxd8 {[%clk 0:00:31]} 27... Rxd8
{[%clk 0:00:21]} 28. Bxe5 {[%clk 0:00:31.4]} 28... fxe5 {[%clk 0:00:20.5]} 29.
Qxe5 {[%clk 0:00:32.3]} 29... Bg4 {[%clk 0:00:17.4]} 30. Rf4 {[%clk 0:00:25]}
30... Qe2 {[%clk 0:00:13.6]} 31. Kh2 {[%clk 0:00:15.6]} 31... Rf8 {[%clk
0:00:12]} 32. Rxf8+ {[%clk 0:00:11.6]} 32... Bxf8 {[%clk 0:00:11.8]} 33. Qf4
{[%clk 0:00:07.3]} 33... h6 {[%clk 0:00:08.7]} 34. h5 {[%clk 0:00:06.2]} 34...
Bxh5 {[%clk 0:00:07.8]} 35. Qe5 {[%clk 0:00:06.1]} 35... Bf3 {[%clk 0:00:07]}
36. Qxe6+ {[%clk 0:00:04.2]} 36... Kh8 {[%clk 0:00:05.8]} 37. Qh3 {[%clk
0:00:01.2]} 37... Bxe4 {[%clk 0:00:04.6]} 0-1

[Event "Late-Titled-Tuesday-Blitz-February-27-2024"]
[Site "Chess.com"]
[Date "2024.02.27"]
[Round "8"]
[White "DuleMudule"]
[Black "KuzubovYuriy"]
[Result "0-1"]
[WhiteElo "2872"]
[BlackElo "2964"]
[TimeControl "180+1"]
[EndTime "15:27:37 PST"]
[Termination "KuzubovYuriy won on time"]

1. d4 {[%clk 0:03:00.9]} 1... g6 {[%clk 0:02:59.6]} 2. e4 {[%clk 0:02:59.9]}
2... Bg7 {[%clk 0:03:00]} 3. Nc3 {[%clk 0:03:00.5]} 3... d6 {[%clk 0:03:00.4]}
4. Be3 {[%clk 0:03:01]} 4... a6 {[%clk 0:03:00.5]} 5. f3 {[%clk 0:03:00.9]} 5...
b5 {[%clk 0:03:00.6]} 6. Qd2 {[%clk 0:03:01.4]} 6... Nd7 {[%clk 0:03:00.1]} 7.
h4 {[%clk 0:03:01.4]} 7... h6 {[%clk 0:02:59.5]} 8. a4 {[%clk 0:02:52.1]} 8...
b4 {[%clk 0:02:58.6]} 9. Nce2 {[%clk 0:02:52.6]} 9... a5 {[%clk 0:02:56.6]} 10.
Ng3 {[%clk 0:02:52.1]} 10... c5 {[%clk 0:02:53.1]} 11. c3 {[%clk 0:02:47.9]}
11... Qc7 {[%clk 0:02:47.2]} 12. h5 {[%clk 0:02:44.4]} 12... bxc3 {[%clk
0:02:37.6]} 13. bxc3 {[%clk 0:02:43.9]} 13... cxd4 {[%clk 0:02:36.8]} 14. cxd4
{[%clk 0:02:44.8]} 14... d5 {[%clk 0:02:36.3]} 15. e5 {[%clk 0:02:43.8]} 15...
Nxe5 {[%clk 0:02:20]} 16. Bf4 {[%clk 0:01:59.5]} 16... g5 {[%clk 0:02:19.2]} 17.
Bb5+ {[%clk 0:01:54.1]} 17... Kf8 {[%clk 0:02:18.1]} 18. Rc1 {[%clk 0:01:34.2]}
18... Nxf3+ {[%clk 0:02:11.5]} 19. Nxf3 {[%clk 0:01:27.9]} 19... Qxf4 {[%clk
0:02:11.6]} 20. Qxf4 {[%clk 0:01:18.8]} 20... gxf4 {[%clk 0:02:11.7]} 21. Ne2
{[%clk 0:01:19.4]} 21... Bg4 {[%clk 0:02:10]} 22. Ne5 {[%clk 0:01:05.1]} 22...
Bxe5 {[%clk 0:02:02.5]} 23. dxe5 {[%clk 0:01:06]} 23... Bxe2 {[%clk 0:01:43]}
24. Kxe2 {[%clk 0:01:05.4]} 24... e6 {[%clk 0:01:43.6]} 25. Rhf1 {[%clk
0:01:03.2]} 25... Ne7 {[%clk 0:01:43.9]} 26. Rxf4 {[%clk 0:01:03.1]} 26... Rg8
{[%clk 0:01:44.6]} 27. g4 {[%clk 0:00:58]} 27... Rg5 {[%clk 0:01:44.4]} 28. Kd3
{[%clk 0:00:57.5]} 28... Rxe5 {[%clk 0:01:43]} 29. Rcf1 {[%clk 0:00:49.6]} 29...
f5 {[%clk 0:01:41.2]} 30. Kd4 {[%clk 0:00:42.6]} 30... Re4+ {[%clk 0:01:34.1]}
31. Rxe4 {[%clk 0:00:42.5]} 31... dxe4 {[%clk 0:01:34.4]} 32. Ke5 {[%clk
0:00:43]} 32... Kf7 {[%clk 0:01:26.6]} 33. Bc4 {[%clk 0:00:36]} 33... Nc6+
{[%clk 0:00:37.7]} 34. Kd6 {[%clk 0:00:35.4]} 34... Nd4 {[%clk 0:00:20.6]} 35.
gxf5 {[%clk 0:00:34.1]} 35... Rd8+ {[%clk 0:00:19.7]} 36. Kc7 {[%clk 0:00:24.4]}
36... Rf8 {[%clk 0:00:17.3]} 37. fxe6+ {[%clk 0:00:23.2]} 37... Ke7 {[%clk
0:00:17.1]} 38. Rxf8 {[%clk 0:00:20.4]} 38... Kxf8 {[%clk 0:00:18]} 39. Kd7
{[%clk 0:00:20.8]} 39... Nf5 {[%clk 0:00:18.1]} 40. Be2 {[%clk 0:00:18.5]} 40...
e3 {[%clk 0:00:17.8]} 41. Bg4 {[%clk 0:00:17.2]} 41... Ne7 {[%clk 0:00:17.8]}
42. Be2 {[%clk 0:00:10.2]} 42... Nf5 {[%clk 0:00:16.1]} 43. Bc4 {[%clk 0:00:05]}
43... Ne7 {[%clk 0:00:15.7]} 44. Bd3 {[%clk 0:00:05]} 44... Ng8 {[%clk
0:00:14.9]} 45. Kd6 {[%clk 0:00:01.7]} 45... Ke8 {[%clk 0:00:15]} 0-1

[Event "Late-Titled-Tuesday-Blitz-February-27-2024"]
[Site "Chess.com"]
[Date "2024.02.27"]
[Round "8"]
[White "Alex_Sahakyan2006"]
[Black "TomsKantans"]
[Result "1-0"]
[WhiteElo "2822"]
[BlackElo "2682"]
[TimeControl "180+1"]
[EndTime "15:27:37 PST"]
[Termination "Alex_Sahakyan2006 won by resignation"]

1. e4 {[%clk 0:02:53.8]} 1... c5 {[%clk 0:02:57.3]} 2. Nc3 {[%clk 0:02:53.3]}
2... Nc6 {[%clk 0:02:57.2]} 3. Bb5 {[%clk 0:02:53.2]} 3... Qc7 {[%clk 0:02:56]}
4. Nf3 {[%clk 0:02:44.1]} 4... Nf6 {[%clk 0:02:55.8]} 5. O-O {[%clk 0:02:35.6]}
5... Nd4 {[%clk 0:02:55.8]} 6. Re1 {[%clk 0:02:32]} 6... a6 {[%clk 0:02:55.2]}
7. Bf1 {[%clk 0:02:30.2]} 7... d6 {[%clk 0:02:55.2]} 8. Nxd4 {[%clk 0:02:20.3]}
8... cxd4 {[%clk 0:02:56.1]} 9. Ne2 {[%clk 0:02:15.2]} 9... Nxe4 {[%clk
0:02:45.5]} 10. Nxd4 {[%clk 0:02:12.9]} 10... Nf6 {[%clk 0:02:45.4]} 11. d3
{[%clk 0:01:51.2]} 11... g6 {[%clk 0:02:44.6]} 12. Bg5 {[%clk 0:01:45.1]} 12...
Bg7 {[%clk 0:02:44.5]} 13. Qe2 {[%clk 0:01:42.2]} 13... e5 {[%clk 0:02:07.6]}
14. Qf3 {[%clk 0:01:28.8]} 14... Nd7 {[%clk 0:01:23.6]} 15. Ne2 {[%clk 0:01:09]}
15... O-O {[%clk 0:01:22.3]} 16. Nc3 {[%clk 0:01:07.4]} 16... f6 {[%clk
0:01:21.2]} 17. Nd5 {[%clk 0:01:03.2]} 17... Qd8 {[%clk 0:01:21.5]} 18. Be3
{[%clk 0:00:59.9]} 18... f5 {[%clk 0:01:21.1]} 19. c3 {[%clk 0:00:37.3]} 19...
f4 {[%clk 0:00:46.5]} 20. Bd2 {[%clk 0:00:35.3]} 20... Nc5 {[%clk 0:00:46.9]}
21. d4 {[%clk 0:00:32.9]} 21... Ne6 {[%clk 0:00:30.3]} 22. Bc4 {[%clk
0:00:30.2]} 22... Kh8 {[%clk 0:00:30.2]} 23. dxe5 {[%clk 0:00:27.2]} 23... dxe5
{[%clk 0:00:31.1]} 24. Rad1 {[%clk 0:00:20.4]} 24... b5 {[%clk 0:00:31.1]} 25.
Nxf4 {[%clk 0:00:16.4]} 25... bxc4 {[%clk 0:00:20.5]} 26. Qxa8 {[%clk
0:00:13.7]} 26... exf4 {[%clk 0:00:20.9]} 27. Bxf4 {[%clk 0:00:12.1]} 27... Qb6
{[%clk 0:00:19.6]} 28. Be3 {[%clk 0:00:11.9]} 28... Qb7 {[%clk 0:00:17.5]} 29.
Qxb7 {[%clk 0:00:11.5]} 29... Bxb7 {[%clk 0:00:18.4]} 30. Rd7 {[%clk 0:00:11.8]}
30... Bc8 {[%clk 0:00:16.8]} 31. Re7 {[%clk 0:00:11.8]} 31... Bf6 {[%clk
0:00:15.3]} 32. Ra7 {[%clk 0:00:12.4]} 32... h5 {[%clk 0:00:12.6]} 33. h3 {[%clk
0:00:11.8]} 33... Ng7 {[%clk 0:00:10.5]} 34. Bh6 {[%clk 0:00:11.7]} 34... Kg8
{[%clk 0:00:08.6]} 35. Re3 {[%clk 0:00:10.7]} 35... Rf7 {[%clk 0:00:07.8]} 36.
Ra8 {[%clk 0:00:09.9]} 36... Rf8 {[%clk 0:00:08.2]} 37. Rf3 {[%clk 0:00:10.6]}
37... Bf5 {[%clk 0:00:05.5]} 38. Rxf8+ {[%clk 0:00:10.1]} 38... Kxf8 {[%clk
0:00:06.4]} 39. g4 {[%clk 0:00:10.5]} 39... hxg4 {[%clk 0:00:07]} 40. hxg4
{[%clk 0:00:11.4]} 40... Kf7 {[%clk 0:00:07.3]} 41. gxf5 {[%clk 0:00:10.8]}
41... Nxf5 {[%clk 0:00:08.2]} 42. Bd2 {[%clk 0:00:10.8]} 42... Ke6 {[%clk
0:00:08.3]} 43. Rf4 {[%clk 0:00:11.3]} 43... Kd5 {[%clk 0:00:08.8]} 44. Rg4
{[%clk 0:00:11.8]} 44... Ne7 {[%clk 0:00:09]} 45. Bg5 {[%clk 0:00:11.6]} 45...
Bxg5 {[%clk 0:00:08.7]} 46. Rxg5+ {[%clk 0:00:12.5]} 46... Ke4 {[%clk
0:00:09.6]} 47. Ra5 {[%clk 0:00:12.3]} 1-0

[Event "Late-Titled-Tuesday-Blitz-February-27-2024"]
[Site "Chess.com"]
[Date "2024.02.27"]
[Round "8"]
[White "FuenfgegenWilly"]
[Black "yaguigor"]
[Result "0-1"]
[WhiteElo "2456"]
[BlackElo "2626"]
[TimeControl "180+1"]
[EndTime "15:27:38 PST"]
[Termination "yaguigor won on time"]

1. e4 {[%clk 0:02:33.2]} 1... d6 {[%clk 0:02:58.4]} 2. Nc3 {[%clk 0:02:33.2]}
2... Nf6 {[%clk 0:02:55.4]} 3. f4 {[%clk 0:02:33.7]} 3... c5 {[%clk 0:02:54.4]}
4. Nf3 {[%clk 0:02:34.6]} 4... Nc6 {[%clk 0:02:52.3]} 5. Bb5 {[%clk 0:02:35]}
5... Bd7 {[%clk 0:02:51.6]} 6. Bc4 {[%clk 0:02:29.7]} 6... e6 {[%clk 0:02:48.7]}
7. f5 {[%clk 0:02:26.3]} 7... Be7 {[%clk 0:02:37]} 8. fxe6 {[%clk 0:02:25.9]}
8... fxe6 {[%clk 0:02:36.4]} 9. O-O {[%clk 0:02:24.6]} 9... O-O {[%clk
0:02:35.7]} 10. Ng5 {[%clk 0:02:23.5]} 10... Nd4 {[%clk 0:02:33.4]} 11. Ne2
{[%clk 0:02:23.5]} 11... Qc8 {[%clk 0:02:30.5]} 12. Nxd4 {[%clk 0:02:23.2]}
12... cxd4 {[%clk 0:02:30]} 13. d3 {[%clk 0:02:23.6]} 13... h6 {[%clk
0:02:24.4]} 14. Nh3 {[%clk 0:02:23.7]} 14... Nxe4 {[%clk 0:02:22.5]} 15. Rxf8+
{[%clk 0:02:18.2]} 15... Bxf8 {[%clk 0:02:22]} 16. Nf4 {[%clk 0:02:13.8]} 16...
Ng5 {[%clk 0:02:18.3]} 17. h4 {[%clk 0:02:12.7]} 17... Nf7 {[%clk 0:02:17.7]}
18. Ng6 {[%clk 0:01:57.7]} 18... d5 {[%clk 0:02:16.4]} 19. Bb3 {[%clk 0:01:58]}
19... Bd6 {[%clk 0:02:15.5]} 20. Qh5 {[%clk 0:01:53.1]} 20... Qe8 {[%clk
0:02:11.7]} 21. Bd2 {[%clk 0:01:51.8]} 21... Ne5 {[%clk 0:02:02.3]} 22. Nf4
{[%clk 0:01:45.7]} 22... Qxh5 {[%clk 0:02:01.3]} 23. Nxh5 {[%clk 0:01:46.6]}
23... Ng4 {[%clk 0:01:59.5]} 24. Re1 {[%clk 0:01:40.1]} 24... Rf8 {[%clk
0:01:53.1]} 25. g3 {[%clk 0:01:15.9]} 25... Ne3 {[%clk 0:01:46.1]} 26. Bxe3
{[%clk 0:01:07.5]} 26... dxe3 {[%clk 0:01:45.4]} 27. c3 {[%clk 0:01:08.4]} 27...
Be8 {[%clk 0:01:42]} 28. Nf4 {[%clk 0:01:05.8]} 28... Bxf4 {[%clk 0:01:41]} 29.
gxf4 {[%clk 0:01:06.7]} 29... Rxf4 {[%clk 0:01:40.7]} 30. Rxe3 {[%clk
0:01:07.4]} 30... Kf7 {[%clk 0:01:36.1]} 31. Rh3 {[%clk 0:00:56]} 31... Kf6
{[%clk 0:01:30.2]} 32. Kg2 {[%clk 0:00:55.5]} 32... Bh5 {[%clk 0:01:24.4]} 33.
d4 {[%clk 0:00:51.3]} 33... Re4 {[%clk 0:01:19.8]} 34. Kf1 {[%clk 0:00:34]}
34... Bg4 {[%clk 0:01:11]} 35. Rh2 {[%clk 0:00:32.1]} 35... h5 {[%clk
0:01:10.2]} 36. Rf2+ {[%clk 0:00:28.5]} 36... Bf5 {[%clk 0:01:07.5]} 37. Rh2
{[%clk 0:00:26.6]} 37... g5 {[%clk 0:01:05.8]} 38. hxg5+ {[%clk 0:00:26.3]}
38... Kxg5 {[%clk 0:01:05.2]} 39. Bd1 {[%clk 0:00:26.6]} 39... h4 {[%clk
0:01:02.4]} 40. Kf2 {[%clk 0:00:26.7]} 40... h3 {[%clk 0:00:58.9]} 41. Bf3
{[%clk 0:00:22.4]} 41... Rh4 {[%clk 0:00:54.1]} 42. Kg3 {[%clk 0:00:21.3]} 42...
Be4 {[%clk 0:00:50.9]} 43. Bxe4 {[%clk 0:00:18.3]} 43... Rxe4 {[%clk 0:00:50.7]}
44. Rxh3 {[%clk 0:00:16.6]} 44... Re3+ {[%clk 0:00:49.8]} 45. Kg2 {[%clk
0:00:16.7]} 45... Re2+ {[%clk 0:00:45.7]} 46. Kf3 {[%clk 0:00:14.5]} 46... Rxb2
{[%clk 0:00:45.8]} 47. Rh7 {[%clk 0:00:13.8]} 47... a5 {[%clk 0:00:43.4]} 48. a4
{[%clk 0:00:11.3]} 48... Rb3 {[%clk 0:00:40.1]} 49. Ke2 {[%clk 0:00:11.6]} 49...
Rxc3 {[%clk 0:00:38.6]} 50. Rxb7 {[%clk 0:00:11.4]} 50... Rc4 {[%clk 0:00:38.8]}
51. Re7 {[%clk 0:00:07]} 51... Kf6 {[%clk 0:00:37.4]} 52. Rh7 {[%clk 0:00:05.7]}
52... Rxd4 {[%clk 0:00:36.7]} 53. Rh6+ {[%clk 0:00:03.5]} 53... Ke5 {[%clk
0:00:35.9]} 0-1

[Event "Late-Titled-Tuesday-Blitz-February-27-2024"]
[Site "Chess.com"]
[Date "2024.02.27"]
[Round "8"]
[White "DonMicheleCorleone"]
[Black "CheckBits"]
[Result "0-1"]
[WhiteElo "2521"]
[BlackElo "2430"]
[TimeControl "180+1"]
[EndTime "15:27:39 PST"]
[Termination "CheckBits won by resignation"]

1. e4 {[%clk 0:00:44.6]} 1... e5 {[%clk 0:02:58.2]} 2. Nf3 {[%clk 0:00:44.5]}
2... Nc6 {[%clk 0:02:57.5]} 3. Bc4 {[%clk 0:00:44.7]} 3... Bc5 {[%clk
0:02:56.6]} 4. c3 {[%clk 0:00:44.8]} 4... Nf6 {[%clk 0:02:55.5]} 5. d4 {[%clk
0:00:45.5]} 5... exd4 {[%clk 0:02:53.5]} 6. cxd4 {[%clk 0:00:46.4]} 6... Bb4+
{[%clk 0:02:51.9]} 7. Nc3 {[%clk 0:00:47.1]} 7... d5 {[%clk 0:02:45]} 8. exd5
{[%clk 0:00:46]} 8... Nxd5 {[%clk 0:02:44]} 9. O-O {[%clk 0:00:46.2]} 9... Bxc3
{[%clk 0:02:41.1]} 10. bxc3 {[%clk 0:00:46.2]} 10... O-O {[%clk 0:02:40.5]} 11.
Bg5 {[%clk 0:00:40.8]} 11... Qd6 {[%clk 0:02:38]} 12. Qc2 {[%clk 0:00:33.9]}
12... Bg4 {[%clk 0:02:34.8]} 13. Qe4 {[%clk 0:00:30.4]} 13... Be6 {[%clk
0:02:22.9]} 14. Bd3 {[%clk 0:00:24.8]} 14... f5 {[%clk 0:02:15.4]} 15. Qh4
{[%clk 0:00:20.8]} 15... Nxc3 {[%clk 0:02:11]} 16. d5 {[%clk 0:00:17.3]} 16...
Bxd5 {[%clk 0:02:07.9]} 17. Bf4 {[%clk 0:00:10.5]} 17... Qf6 {[%clk 0:02:00.9]}
18. Bg5 {[%clk 0:00:05.1]} 18... Qg6 {[%clk 0:01:55.6]} 19. Nd2 {[%clk
0:00:03.3]} 19... h6 {[%clk 0:01:53.8]} 20. f4 {[%clk 0:00:01.5]} 20... hxg5
{[%clk 0:01:51.8]} 21. fxg5 {[%clk 0:00:02.4]} 21... Ne4 {[%clk 0:01:47.4]} 22.
Nf3 {[%clk 0:00:01.5]} 22... Rae8 {[%clk 0:01:42.2]} 23. Rad1 {[%clk 0:00:02.1]}
23... Ne5 {[%clk 0:01:40.6]} 24. Nxe5 {[%clk 0:00:01.7]} 24... Rxe5 {[%clk
0:01:40.1]} 25. Qf4 {[%clk 0:00:02.6]} 25... Rfe8 {[%clk 0:01:38.3]} 26. h4
{[%clk 0:00:03.2]} 26... Qb6+ {[%clk 0:01:32.8]} 27. Kh2 {[%clk 0:00:03.2]}
27... Nd6 {[%clk 0:01:30.2]} 28. Bb1 {[%clk 0:00:02.6]} 28... c6 {[%clk
0:01:27.5]} 29. h5 {[%clk 0:00:03.1]} 29... Qe3 {[%clk 0:01:27.1]} 30. g6 {[%clk
0:00:01.8]} 30... Qxf4+ {[%clk 0:01:22]} 31. Rxf4 {[%clk 0:00:02.7]} 31... Ne4
{[%clk 0:01:21.6]} 32. g4 {[%clk 0:00:02.5]} 32... Nc3 {[%clk 0:01:15]} 33. Rdf1
{[%clk 0:00:02.6]} 33... Nxb1 {[%clk 0:01:11.6]} 34. Rxb1 {[%clk 0:00:03.5]}
34... Re2+ {[%clk 0:01:10.5]} 35. Kg3 {[%clk 0:00:03.4]} 35... R8e3+ {[%clk
0:01:10.4]} 36. Kh4 {[%clk 0:00:03.7]} 36... Rh2+ {[%clk 0:01:10.5]} 37. Kg5
{[%clk 0:00:04.3]} 37... fxg4 {[%clk 0:01:05.9]} 38. Rxb7 {[%clk 0:00:04.4]}
38... Re5+ {[%clk 0:01:01.7]} 39. Kxg4 {[%clk 0:00:04.4]} 39... Re8 {[%clk
0:00:58.1]} 40. Rff7 {[%clk 0:00:04.8]} 40... Rg2+ {[%clk 0:00:29.4]} 41. Kh3
{[%clk 0:00:04.8]} 41... Re3+ {[%clk 0:00:24]} 42. Kh4 {[%clk 0:00:05.3]} 42...
Bxf7 {[%clk 0:00:13.9]} 43. gxf7+ {[%clk 0:00:03]} 43... Kf8 {[%clk 0:00:13.3]}
44. h6 {[%clk 0:00:03.7]} 44... gxh6 {[%clk 0:00:12.2]} 45. Rxa7 {[%clk
0:00:04.4]} 45... Re1 {[%clk 0:00:11.5]} 46. Kh3 {[%clk 0:00:04.8]} 46... Rg5
{[%clk 0:00:11.4]} 47. Kh4 {[%clk 0:00:05.1]} 0-1